fUSD/lending_fUSD_20240114
["ID","MTS","AMOUNT","RATE_DAILY","PERIOD"]
[311559402,1705239065265,-150.28,0.00033,2]
[311559403,1705239065278,-150.28,0.00033,2]
[311559404,1705239065290,-1697.99950521,0.000379,3]
[311559405,1705239066496,-150.28,0.00033,2]
[311559406,1705239066508,-150.28,0.00033,2]
[311559407,1705239066520,-150.28,0.00033,2]
[311559408,1705239066532,-150.28,0.00033,2]
[311559409,1705239066543,-128.98073753,0.00033,2]
[311559410,1705239066578,-21.29926247,0.00033,2]
[311559411,1705239066589,-150.28,0.00033,2]
[311559412,1705239066601,-150.28,0.00033,2]
[311559413,1705239066612,-150.28,0.00033,2]
[311559414,1705239066626,-150.28,0.00033,2]
[311559415,1705239066637,-150.28,0.00033,2]
[311559416,1705239066650,-150.28,0.00033,2]
[311559417,1705239066661,-150.28,0.00033,2]
[311559418,1705239066672,-150.28,0.00033,2]
[311559419,1705239066683,-150.28,0.00033,2]
[311559420,1705239066694,-150.28,0.00033,2]
[311559421,1705239066705,-150.28,0.00033,2]
[311559422,1705239066715,-4257.792586,0.000379,3]
[311559423,1705239067276,259.67457195,0.00019942,2]
[311559424,1705239071665,206.0,0.00021889,2]
[311559425,1705239079621,259.67457195,0.00019942,2]
[311559427,1705239095823,259.67457195,0.00019942,2]
[311559428,1705239111637,259.67457195,0.00019942,2]
[311559430,1705240231908,-411.13475433,0.00022816,2]
[311559431,1705240232124,-88.86524567,0.00022816,2]
[311559432,1705240232134,-200.0,0.00022816,2]
[311559433,1705240232143,-68.63475422,0.000229,2]
[311559434,1705240232155,-181.36524578,0.000229,2]
[311559435,1705240232165,-281.2,0.00023,2]
[311559436,1705240232174,-296.43475422,0.00023449,2]
[311559437,1705240232190,-203.56524578,0.00023449,2]
[311559438,1705240232199,-179.57735625,0.00024,2]
[311559445,1705240238217,-251.62581002,0.00024,2]
[311559446,1705240238227,-200.98944307,0.00024053,2]
[311559447,1705240238237,-150.0,0.00024055,2]
[311559448,1705240238246,-500.0,0.00024082,2]
[311559449,1705240238256,-155.3617784,0.00024485,2]
[311559450,1705240238266,-150.0,0.00024486,2]
[311559451,1705240238275,-155.0,0.00024487,2]
[311559452,1705240238284,-10460.51308776,0.00024487,2]
[311559455,1705240241162,-1201.23505853,0.00024487,2]
[311559498,1705240243145,-337.50241988,0.00024487,2]
[311559499,1705240243203,-284.18450301,0.00024487,2]
[311559500,1705240243213,-3483.85368301,0.00024489,2]
[311559501,1705240243225,-2476.06887702,0.00024489,2]
[311559502,1705240243236,-2081.42398793,0.00024489,2]
[311559503,1705240243248,-838.14301,0.00024489,2]
[311559512,1705240331944,9955.85,0.000221,2]
[311559513,1705240446111,219.99906844,0.000221,2]
[311559514,1705240480106,174.37,0.00021387,2]
[311559515,1705240508046,213.40845659,0.00024367,30]
[311559516,1705240921027,165.65,0.00020401,2]
[311559517,1705240993636,1000.0,0.00022,2]
[311559519,1705241249787,1000.0,0.00022037,2]
[311559520,1705241260520,368.43,0.00022037,2]
[311559525,1705241353639,158.58624909,0.00022015,2]
[311559526,1705241355836,157.36,0.00020117,2]
[311559536,1705241432537,-524.39183014,0.00022379,2]
[311559538,1705241432548,-278.87214514,0.0002238,2]
[311559540,1705241432558,-524.39183014,0.0002238,2]
[311559542,1705241432568,-157.36,0.00022381,2]
[311559544,1705241432577,-2500.0,0.00022563,3]
[311559546,1705241432587,-509.53288923,0.00022567,3]
[311559548,1705241432596,-255.59454588,0.00022567,3]
[311559550,1705241432606,-235.59849038,0.0002257,3]
[311559552,1705241432615,-166.79,0.00022742,2]
[311559555,1705241432625,-164.0549509,0.000228,2]
[311559556,1705241432634,-200.0,0.00022816,2]
[311559558,1705241432644,-164.05495088,0.00022825,2]
[311559561,1705241432655,-164.05495088,0.0002285,2]
[311559563,1705241432664,-164.05495088,0.00022875,2]
[311559564,1705241432673,-1000.0,0.00022897,2]
[311559566,1705241432683,-439.54957085,0.00022898,2]
[311559568,1705241432692,-4977.19999999,0.00022898,2]
[311559570,1705241432702,-90232.07154959,0.00022898,2]
[311559571,1705241432711,-41674.69612017,0.00022898,2]
[311559572,1705241432728,-24652.05087667,0.00022899,2]
[311559573,1705241432743,-514.86735764,0.00022899,2]
[311559574,1705241432752,-27626.79195385,0.000229,2]
[311559575,1705241432762,-39816.24202059,0.000229,2]
[311559581,1705241439401,-635.33974845,0.000229,2]
[311559583,1705241441232,-6219.96617651,0.000229,2]
[311559584,1705241441261,-541.70738013,0.000229,2]
[311559585,1705241441272,-346.05129274,0.000229,2]
[311559587,1705241441485,-45823.00000001,0.000229,2]
[311559632,1705241443222,-7538.2091261,0.000229,2]
[311559635,1705241443270,-5011.94164491,0.000229,2]
[311559636,1705241443280,-2132.89355835,0.000229,2]
[311559637,1705241443291,-2390.16977004,0.000229,2]
[311559638,1705241443302,-18809.89514605,0.000229,2]
[311559639,1705241443311,-164.05495088,0.000229,2]
[311559640,1705241443320,-195.75754635,0.000229,2]
[311559641,1705241443331,-1637.40126482,0.000229,2]
[311559642,1705241443340,-11328.78311781,0.0002298,2]
[311559643,1705241443349,-500.0,0.0002298,2]
[311559644,1705241443358,-236.14012151,0.00022994,2]
[311559645,1705241443367,-5403.42153916,0.00022994,2]
[311559646,1705241443376,-2057.76092391,0.00022994,2]
[311559647,1705241443386,-406.82804699,0.00022994,2]
[311559648,1705241443395,-1073.30962444,0.00022995,2]
[311559649,1705241443406,-202.52398103,0.00022997,2]
[311559650,1705241443416,-641.62118611,0.00022997,2]
[311559652,1705241443425,-249.03749103,0.00022997,2]
[311559654,1705241443434,-4620.10854886,0.00022997,2]
[311559655,1705241443443,-842.13097267,0.00022997,2]
[311559657,1705241443453,-349.74947919,0.00022997,2]
[311559659,1705241443462,-6069.02250765,0.00022997,2]
[311559660,1705241443471,-566.59727256,0.00022997,2]
[311559661,1705241443480,-155.0,0.00022997,2]
[311559662,1705241443490,-249.47964242,0.00022997,2]
[311559663,1705241443500,-757.83994712,0.00022997,2]
[311559664,1705241443510,-213.23222394,0.00022997,2]
[311559665,1705241443519,-894.18392494,0.00022997,2]
[311559666,1705241443530,-289.58602374,0.00022997,2]
[311559667,1705241443539,-682.75174596,0.00022997,2]
[311559668,1705241443549,-244.08411725,0.00022997,2]
[311559669,1705241443558,-320.90158026,0.00022998,2]
[311559670,1705241443569,-350.36534944,0.00022999,10]
[311559671,1705241443579,-350.36534944,0.00022999,10]
[311559672,1705241443588,-350.36534944,0.00022999,10]
[311559673,1705241443598,-500.0,0.00022999,2]
[311559674,1705241443607,-500.0,0.00022999,2]
[311559675,1705241443616,-500.0,0.00022999,2]
[311559676,1705241443626,-500.0,0.00022999,2]
[311559677,1705241443635,-500.0,0.00022999,2]
[311559678,1705241443645,-500.0,0.00022999,2]
[311559679,1705241443654,-300.0,0.00022999,2]
[311559680,1705241443665,-161.16567161,0.00022999,2]
[311559681,1705241443675,-300.0,0.00022999,2]
[311559682,1705241443684,-300.0,0.00022999,2]
[311559683,1705241443693,-300.0,0.00022999,2]
[311559684,1705241443703,-300.0,0.00022999,2]
[311559685,1705241443715,-300.0,0.00022999,2]
[311559686,1705241443726,-300.0,0.00022999,2]
[311559687,1705241443739,-305.892222,0.00022999,2]
[311559688,1705241443749,-128541.08112407,0.00023,2]
[311559689,1705241443782,-3008.67666408,0.00023,2]
[311559714,1705241446877,-12162.37092503,0.00023,2]
[311559729,1705241446936,-1337.69939366,0.00023,2]
[311559732,1705241446948,-3782.15027361,0.00023,2]
[311559735,1705241446959,-2296.75,0.00023,2]
[311559740,1705241446982,-3700.77848853,0.00023,2]
[311559745,1705241446997,-16261.79199812,0.00023,2]
[311559748,1705241447008,-512.61757983,0.00023,2]
[311559751,1705241447019,-23370.78151661,0.00023,2]
[311559754,1705241447028,-406174.72504229,0.00023,2]
[311560021,1705241825301,157.36,0.00021232,2]
[311560022,1705242161899,1460.07878856,0.00021737,2]
[311560023,1705242266255,157.36,0.00021161,2]
[311560024,1705242287524,1460.07878856,0.00022076,2]
[311560059,1705242638364,-4244.0846129,0.00022193,2]
[311560060,1705242638374,-1460.07878856,0.00022194,2]
[311560061,1705242638384,-365.28,0.00022362,2]
[311560062,1705242638393,-200.0,0.0002239,2]
[311560063,1705242638403,-1460.07878856,0.00022483,2]
[311560064,1705242638412,-1041.70622189,0.0002254,2]
[311560065,1705242638424,-1256.30025791,0.0002254,2]
[311560066,1705242638434,-800.0,0.00022593,2]
[311560067,1705242638444,-12.72640802,0.00022768,2]
[311560068,1705242638628,-859.95477342,0.00022768,2]
[311560069,1705242638639,-500.0,0.00022816,2]
[311560070,1705242638652,-155.076293,0.00022899,2]
[311560071,1705242638662,-33487.10927275,0.00022899,2]
[311560072,1705242638672,-15761.94692281,0.000229,2]
[311560073,1705242638681,-129265.41586388,0.000229,2]
[311560074,1705242638692,-32194.66747756,0.000229,2]
[311560075,1705242638701,-250.0,0.000229,2]
[311560076,1705242638711,-244.76928863,0.000229,2]
[311560077,1705242638724,-501.52484264,0.000229,2]
[311560078,1705242638734,-1637.40126482,0.000229,2]
[311560079,1705242638744,-195.75754635,0.000229,2]
[311560080,1705242638753,-317.8787423,0.000229,2]
[311560081,1705242638764,-839.42094028,0.00022998,2]
[311560082,1705242638773,-734.8048383,0.00022998,2]
[311560083,1705242638783,-9667.06089507,0.00022998,2]
[311560084,1705242638794,-318.31330327,0.00022998,2]
[311560085,1705242638804,-14919.93987891,0.00022999,2]
[311560086,1705242638814,-500.0,0.00022999,2]
[311560087,1705242638823,-500.0,0.00022999,2]
[311560088,1705242638834,-500.0,0.00022999,2]
[311560089,1705242638843,-500.0,0.00022999,2]
[311560090,1705242638854,-500.0,0.00022999,2]
[311560091,1705242638864,-500.0,0.00022999,2]
[311560092,1705242638874,-500.0,0.00022999,2]
[311560093,1705242638883,-500.0,0.00022999,2]
[311560094,1705242638894,-500.0,0.00022999,2]
[311560095,1705242638904,-500.0,0.00022999,2]
[311560096,1705242638914,-270609.67765786,0.00023,2]
[311560097,1705242638924,-6412749.98250668,0.00023,2]
[311560098,1705242640802,-997.4029065,0.00023,2]
[311560099,1705242641435,-2138.76307367,0.00023,2]
[311560100,1705242642553,-984.41566338,0.00023,2]
[311560102,1705242643443,-6246.50973598,0.00023,2]
[311560107,1705242646690,-644999.89731485,0.00023,2]
[311560108,1705242716580,151.12,0.00021509,2]
[311560109,1705242898386,-2000.0,0.00022308,2]
[311560110,1705242899332,-470.21691803,0.00022308,2]
[311560111,1705242904585,1529.78308197,0.00022307,2]
[311560112,1705242904605,2000.0,0.00022307,2]
[311560113,1705242904626,2000.0,0.00022307,2]
[311560114,1705242904647,1273.56994001,0.00022307,2]
[311560115,1705242905817,150.0,0.00022308,2]
[311560116,1705243060509,576.43005999,0.000222,2]
[311560117,1705243060530,263.56994001,0.000222,2]
[311560118,1705243264102,151.12,0.00020166,2]
[311560119,1705243289048,351.64,0.0002207,2]
[311560120,1705243416540,2500.0,0.00025,15]
[311560121,1705243482636,328.0,0.00021993,2]
[311560122,1705243692973,155.53567901,0.00022222,2]
[311560124,1705243768778,151.12,0.00020021,2]
[311560125,1705243808780,155.0,0.00022308,2]
[311560126,1705243811505,337.38382582,0.00022308,2]
[311560127,1705243813988,106.63055516,0.00021851,2]
[311560128,1705243814011,221.55944484,0.00021851,2]
[311560129,1705243815116,515.20412514,0.00022308,2]
[311560130,1705243818744,155.0,0.00022308,2]
[311560131,1705243820929,1108.23643002,0.00022308,2]
[311560132,1705243820950,1209.88964021,0.00022308,2]
[311560133,1705243824646,790.11035979,0.00022308,2]
[311560134,1705243824668,1346.09946998,0.00022308,2]
[311560145,1705243831467,-155.0,0.00022309,2]
[311560146,1705243831477,-1343.83714,0.00022309,2]
[311560147,1705243831526,-32011.54221014,0.00022309,2]
[311560148,1705243831539,-3856.82715024,0.00022309,2]
[311560149,1705243831549,-1040.94397812,0.00022309,2]
[311560150,1705243831559,-524.39183014,0.0002231,2]
[311560151,1705243831568,-19000.90173546,0.0002231,2]
[311560152,1705243831578,-370.92564155,0.00022311,2]
[311560153,1705243831587,-4623.14199213,0.00022311,2]
[311560154,1705243831597,-2635.04370569,0.00022314,2]
[311560155,1705243831606,-5512.30318282,0.00022316,2]
[311560156,1705243831615,-150.0,0.00022321,2]
[311560157,1705243831625,-150.0,0.00022321,2]
[311560158,1705243831634,-300.0,0.00022321,2]
[311560159,1705243831645,-150.0,0.00022329,2]
[311560160,1705243831654,-2932.76,0.00022358,2]
[311560161,1705243831664,-6452.81,0.00022361,2]
[311560162,1705243831673,-161.31,0.00022362,2]
[311560163,1705243831683,-181.32,0.00022434,2]
[311560164,1705243831693,-1460.07878856,0.00022534,2]
[311560165,1705243831702,-237.5,0.00022576,3]
[311560166,1705243831711,-229.28980015,0.00022576,3]
[311560167,1705243831721,-328.19,0.00022829,2]
[311560168,1705243831731,-151.12,0.00022888,2]
[311560169,1705243831740,-178.86089849,0.00022889,2]
[311560170,1705243831750,-171.12309362,0.00022895,2]
[311560171,1705243831759,-514.30083756,0.00022897,2]
[311560172,1705243831768,-155.0,0.00022898,2]
[311560173,1705243831778,-640.57684527,0.00022898,2]
[311560174,1705243831787,-385483.98356949,0.00022899,2]
[311560175,1705243831799,-433780.94246821,0.00022899,2]
[311560176,1705243831820,-328.78748034,0.00022899,2]
[311560177,1705243831832,-407.53,0.00022899,2]
[311560179,1705243831844,-2805.78287957,0.00022899,2]
[311560181,1705243831855,-278.60878409,0.00022899,2]
[311560183,1705243831867,-358.1422689,0.00022899,2]
[311560185,1705243831879,-38805.275347,0.00022899,2]
[311560190,1705243831918,-818.99,0.00022899,2]
[311560193,1705243831930,-193161.44180167,0.00022899,2]
[311560196,1705243831940,-250.0,0.000229,2]
[311560198,1705243831949,-12745.28073452,0.000229,2]
[311560200,1705243831958,-171.12309362,0.000229,2]
[311560202,1705243831968,-155.53567901,0.000229,2]
[311560204,1705243831978,-19865.25048401,0.000229,2]
[311560206,1705243831990,-865.14657609,0.000229,2]
[311560209,1705243832001,-973.32883742,0.000229,2]
[311560211,1705243832013,-2431.44335424,0.000229,2]
[311560213,1705243832024,-716.5599999,0.000229,2]
[311560228,1705243832149,-943.93187355,0.000229,2]
[311560230,1705243832161,-481.13236969,0.000229,2]
[311560232,1705243832172,-250.0,0.000229,2]
[311560234,1705243832184,-11180.38085196,0.000229,2]
[311560236,1705243832195,-30391.35086517,0.000229,2]
[311560239,1705243832207,-1050.64516846,0.000229,2]
[311560241,1705243832218,-311.44051922,0.000229,2]
[311560243,1705243832229,-590.0394705,0.000229,2]
[311560246,1705243832242,-1863.58088951,0.000229,2]
[311560248,1705243832253,-57351.18460416,0.000229,2]
[311560250,1705243832263,-60000.00000099,0.00022966,2]
[311560252,1705243832273,-215.11753073,0.00022975,2]
[311560254,1705243832283,-178.86089849,0.0002299,2]
[311560256,1705243832296,-178.86089849,0.0002299,2]
[311560258,1705243832306,-16068.67317058,0.00022991,2]
[311560260,1705243832315,-217.02178002,0.00022991,2]
[311560262,1705243832324,-264.94143778,0.00022991,2]
[311560264,1705243832334,-519.21117805,0.00022991,2]
[311560266,1705243832344,-397.75467235,0.00022992,2]
[311560268,1705243832353,-710.08718202,0.00022992,2]
[311560271,1705243832363,-383.66804724,0.00022992,2]
[311560273,1705243832374,-208.49553179,0.00022994,2]
[311560275,1705243832384,-201.04685233,0.00022994,2]
[311560277,1705243832395,-237.12515196,0.00022994,2]
[311560279,1705243832404,-155.0,0.00022994,2]
[311560281,1705243832413,-155.19651789,0.00022994,2]
[311560283,1705243832423,-156.5574456,0.00022994,2]
[311560285,1705243832433,-668.25192238,0.00022994,2]
[311560287,1705243832442,-186.2702355,0.00022994,2]
[311560289,1705243832451,-155.55451817,0.00022994,2]
[311560291,1705243832461,-238.63,0.00022994,2]
[311560293,1705243832470,-300.64833471,0.00022994,2]
[311560295,1705243832479,-386.38055922,0.00022994,2]
[311560297,1705243832488,-172.67,0.00022994,2]
[311560299,1705243832498,-2803.67,0.00022994,2]
[311560301,1705243832507,-685.97388283,0.00022995,2]
[311560303,1705243832517,-470.45974025,0.00022995,2]
[311560305,1705243832526,-3227.37423432,0.00022995,2]
[311560307,1705243832535,-293.43815089,0.00022995,2]
[311560309,1705243832545,-255.32338561,0.00022995,2]
[311560313,1705243832572,-5.54332391,0.00022995,2]
[311560316,1705243832581,-155.0,0.00022995,2]
[311560318,1705243832591,-2049.73940079,0.00022995,2]
[311560319,1705243832600,-1488.5802605,0.00022995,2]
[311560322,1705243832612,-619.75598315,0.00022995,2]
[311560324,1705243832623,-606.94100005,0.00022995,2]
[311560327,1705243832638,-21.85528612,0.00022995,2]
[311560329,1705243832648,-1391.72840643,0.00022995,2]
[311560331,1705243832657,-160.31660961,0.00022995,2]
[311560333,1705243832667,-180.92566919,0.00022995,2]
[311560335,1705243832676,-6783.87230579,0.00022995,2]
[311560337,1705243832685,-155.8718364,0.00022995,2]
[311560339,1705243832694,-255.0,0.00022996,2]
[311560341,1705243832703,-334.18124431,0.00022996,2]
[311560343,1705243832713,-210.21880048,0.00022996,2]
[311560345,1705243832722,-155.89714604,0.00022996,2]
[311560347,1705243832731,-301.20793522,0.00022996,2]
[311560349,1705243832741,-383.14879003,0.00022996,2]
[311560351,1705243832750,-184.7830641,0.00022996,2]
[311560353,1705243832759,-256.60329873,0.00022996,2]
[311560358,1705243832796,-3.50622623,0.00022996,2]
[311560360,1705243832805,-156.45682699,0.00022996,2]
[311560362,1705243832815,-180.75274427,0.00022996,2]
[311560364,1705243832824,-2998.91895164,0.00022996,2]
[311560366,1705243832834,-193.36290048,0.00022996,2]
[311560368,1705243832843,-1702.94991301,0.00022996,2]
[311560370,1705243832853,-914.08601068,0.00022997,2]
[311560372,1705243832863,-381.20683443,0.00022997,2]
[311560374,1705243832873,-736.93908575,0.00022997,2]
[311560376,1705243832883,-695.52274718,0.00022997,2]
[311560378,1705243832893,-156.05286893,0.00022998,2]
[311560380,1705243832902,-161.58862516,0.00022998,2]
[311560382,1705243832911,-158.21861741,0.00022998,2]
[311560384,1705243832920,-285.53311155,0.00022998,2]
[311560386,1705243832930,-403.8131731,0.00022998,2]
[311560388,1705243832939,-939.01597948,0.00022998,2]
[311560390,1705243832948,-2302.61351158,0.00022998,2]
[311560392,1705243832957,-3617.84690064,0.00022998,2]
[311560394,1705243832967,-156.40921071,0.00022998,2]
[311560396,1705243832976,-2361.03331776,0.00022998,2]
[311560398,1705243832986,-720.89351567,0.00022998,2]
[311560400,1705243832995,-1431.24682515,0.00022998,2]
[311560402,1705243833005,-1887.26460822,0.00022998,2]
[311560404,1705243833014,-287.3328221,0.00022998,2]
[311560406,1705243833024,-284.2618957,0.00022998,2]
[311560408,1705243833033,-155.38053658,0.00022998,2]
[311560410,1705243833042,-156.32718198,0.00022998,2]
[311560412,1705243833051,-252.47416197,0.00022998,2]
[311560414,1705243833061,-155.49937003,0.00022998,2]
[311560416,1705243833071,-107116.93807481,0.00022998,2]
[311560465,1705243837553,-340.92851845,0.00022897,2]
[311560466,1705243837562,-847.0764807,0.00022899,2]
[311560467,1705243837574,-1780.16403589,0.00022899,2]
[311560468,1705243837586,-1002.07127916,0.00022899,2]
[311560469,1705243837627,-1250.0571873,0.00022899,2]
[311560470,1705243837639,-390.28260602,0.00022899,2]
[311560471,1705243837651,-15054.75797143,0.00022899,2]
[311560472,1705243837662,-6938.46057468,0.00022899,2]
[311560473,1705243837695,-118181.69845805,0.00022899,2]
[311560474,1705243837707,-17346.97063968,0.00022899,2]
[311560475,1705243837719,-4809.31574473,0.00022899,2]
[311560476,1705243837730,-11531.56272385,0.00022899,2]
[311560477,1705243837753,-9878.6181306,0.00022899,2]
[311560478,1705243837763,-835123.6254101,0.00022998,2]
[311560479,1705243837772,-42953.03742992,0.00022998,2]
[311560480,1705243837781,-369.12322363,0.00022998,2]
[311560481,1705243837791,-5272.44162638,0.00022998,2]
[311560482,1705243837800,-156.61774606,0.00022998,2]
[311560483,1705243837810,-377.70218682,0.00022998,2]
[311560484,1705243837819,-3497.26452154,0.00022998,2]
[311560485,1705243837829,-842.10602406,0.00022998,2]
[311560486,1705243837838,-196.16185617,0.00022998,2]
[311560487,1705243837848,-155.0,0.00022998,2]
[311560488,1705243837857,-267.03183216,0.00022998,2]
[311560489,1705243837869,-745.04348799,0.00022998,2]
[311560490,1705243837879,-303.12522875,0.00022998,2]
[311560491,1705243837888,-357.81346532,0.00022998,2]
[311560492,1705243837898,-2306.84624905,0.00022999,2]
[311560493,1705243837907,-260991.34409508,0.00023,2]
[311560494,1705243837918,-1481.07984364,0.00023,2]
[311560495,1705243837929,-257.60914271,0.00023,2]
[311560497,1705243837940,-307.48492604,0.00023,2]
[311560500,1705243837962,-2539.27183392,0.00023,2]
[311560501,1705243837976,-263.40803857,0.00023,2]
[311560502,1705243837987,-3345.55352288,0.00023,2]
[311560507,1705243838024,-22400.0,0.00023,2]
[311560509,1705243838035,-13202.63496229,0.00023,2]
[311560511,1705243838046,-13905.63435019,0.00023,2]
[311560513,1705243838058,-4809.3006,0.00023,2]
[311560516,1705243838073,-44209.27012128,0.00023,2]
[311560658,1705243840666,-155.0,0.00022997,2]
[311560659,1705243840676,-640.14742392,0.00023,2]
[311560660,1705243840687,-310.36670459,0.00023,2]
[311560661,1705243840707,-1616.14996358,0.00023,2]
[311560662,1705243840719,-650.0,0.00023,2]
[311560663,1705243840735,-631.15857409,0.00023,2]
[311560667,1705243840947,-595.6030002,0.00023,2]
[311560669,1705243840958,-754.90961272,0.00023,2]
[311560671,1705243840969,-692.60929444,0.00023,2]
[311560673,1705243840981,-393.89355134,0.00023,2]
[311560676,1705243840992,-1349.19600783,0.00023,2]
[311560679,1705243841016,-805.5202,0.00023,2]
[311560681,1705243841028,-539.15556892,0.00023,2]
[311560683,1705243841044,-22796.53785799,0.00023,2]
[311560686,1705243841061,-797.95569169,0.00023,2]
[311560688,1705243841073,-991.02955584,0.00023,2]
[311560690,1705243841084,-585.18103821,0.00023,2]
[311560697,1705243841141,-1558.7992,0.00023,2]
[311560699,1705243841154,-4481.0241821,0.00023,2]
[311560702,1705243841166,-32443.0263302,0.00023,2]
[311560707,1705243841207,-2032.5,0.00023,2]
[311560732,1705243842483,-834.91963717,0.00022999,2]
[311560733,1705243842496,-200.28586687,0.00022999,2]
[311560734,1705243842506,-907.91825439,0.00022999,4]
[311560735,1705243842516,-650.87545578,0.00023,2]
[311560738,1705243842527,-5369.48845275,0.00023,2]
[311560740,1705243842545,-420.47620801,0.00023,2]
[311560741,1705243842580,-832.97723447,0.00023,2]
[311560742,1705243842592,-4738.61070678,0.00023,2]
[311560743,1705243842604,-6402.93584613,0.00023,2]
[311560744,1705243842616,-2622.45646316,0.00023,2]
[311560745,1705243842627,-3251.22395701,0.00023,2]
[311560746,1705243842639,-1282.89966607,0.00023,2]
[311560747,1705243842650,-324.50393721,0.00023,2]
[311560748,1705243842666,-680.3546727,0.00023,2]
[311560749,1705243842677,-341.04,0.00023,2]
[311560750,1705243842688,-2297.79500463,0.00023,2]
[311560751,1705243842700,-1315983.55188826,0.00023,2]
[311560752,1705243842712,-9537.09999968,0.00023,2]
[311560753,1705243842724,-11838.65059956,0.00023,2]
[311560754,1705243842737,-285.32172466,0.00023,2]
[311560755,1705243842749,-976.5896002,0.00023,2]
[311560756,1705243842761,-408.94612682,0.00023,2]
[311560780,1705243843211,-47366.04763604,0.00023,2]
[311560781,1705243843223,-511.680005,0.00023,2]
[311560782,1705243843414,-450.39572349,0.00023,2]
[311560783,1705243843455,-2443.52951912,0.00023,2]
[311560784,1705243843480,-455.2300002,0.00023,2]
[311560785,1705243843492,-4124.0080731,0.00023,2]
[311560786,1705243843505,-1352.6025662,0.00023,2]
[311560787,1705243843517,-1687.33736299,0.00023,2]
[311560788,1705243843547,-1317.63765125,0.00023,2]
[311560789,1705243843561,-893.4767687,0.00023,2]
[311560790,1705243843573,-1888.97810954,0.00023,2]
[311560791,1705243843585,-7785.23361961,0.00023,2]
[311560792,1705243843596,-2082.8838337,0.00023,2]
[311560793,1705243843607,-844.94168302,0.00023,2]
[311560794,1705243843620,-1982.98006036,0.00023,2]
[311560795,1705243843632,-1114.53406978,0.00023,2]
[311560796,1705243843643,-423.95581672,0.00023,2]
[311560797,1705243843657,-1310.89655929,0.00023,2]
[311560798,1705243843681,-1471.63528733,0.00023,2]
[311560835,1705243845597,-432.3925,0.00022999,2]
[311560838,1705243845608,-510.41555221,0.00022999,2]
[311560840,1705243845620,-1670.2939991,0.00022999,2]
[311560842,1705243845629,-156.5988209,0.00022999,2]
[311560844,1705243845639,-241.50228797,0.00022999,2]
[311560846,1705243845648,-4071.01735867,0.00023,2]
[311560847,1705243845660,-345.12,0.00023,2]
[311560848,1705243845671,-1533.28559358,0.00023,2]
[311560849,1705243845682,-3593.4702,0.00023,2]
[311560850,1705243845694,-5462.91765087,0.00023,2]
[311560851,1705243845712,-69038.43018305,0.00023,2]
[311560852,1705243845724,-2439.59652341,0.00023,2]
[311560853,1705243845735,-656.5567666,0.00023,2]
[311560854,1705243845756,-24088.82815283,0.00023,2]
[311560855,1705243845769,-602489.31303372,0.00023,2]
[311560856,1705243845780,-831.86106,0.00023,2]
[311560857,1705243845791,-556.30434361,0.00023,2]
[311560858,1705243845803,-1164.9428467,0.00023,2]
[311560859,1705243845818,-11143.02737814,0.00023,2]
[311560860,1705243845834,-2057.67270995,0.00023,2]
[311560861,1705243845846,-1850.58227869,0.00023,2]
[311560862,1705243845856,-3127.04243696,0.00023,2]
[311560863,1705243845879,-34140.63230507,0.00023,2]
[311560864,1705243845891,-21343.45045401,0.00023,2]
[311560865,1705243845903,-12433.0229344,0.00023,2]
[311560867,1705243845926,-15638.67761466,0.00023,2]
[311560869,1705243845940,-422.91126348,0.00023,2]
[311560872,1705243845951,-800.78704722,0.00023,2]
[311560950,1705243880462,653.90053002,0.00022077,2]
[311560951,1705243880485,109.46755931,0.00022077,2]
[311560952,1705243898870,1040.94397812,0.00022307,2]
[311560953,1705243981357,849.58846257,0.00022307,2]
[311560954,1705243981380,191.35551555,0.00022307,2]
[311560955,1705244034806,266.73722,0.00022307,2]
[311560956,1705244049403,1541.90726445,0.0002,2]
[311560957,1705244049426,2000.0,0.0002,2]
[311560958,1705244049447,2000.0,0.0002,2]